bitfinex-derivatives/quotes_SOLF0:USTF0_20250301
["timestamp","ask_amount","ask_price","bid_price","bid_amount"]
[1740839632390,7.1493,139.93,139.9,192.45150667]
[1740839632685,10.66,139.96,139.87,3.7135]
[1740839632994,7.1494,139.93,139.89,7.1508]
[1740839633396,0.04989272,139.92,139.9,0.04974073]
[1740839635485,0.04989272,139.92,139.91,7.1501]
[1740839637090,0.04989272,139.92,139.9,7.20034073]
[1740839637390,0.04989272,139.92,139.9,0.04974073]
[1740839637796,0.04989272,139.92,139.91,7.1501]
[1740839637993,0.04989272,139.92,139.9,0.04974073]
[1740839638381,0.04989272,139.92,139.9,7.19994073]
[1740839640494,0.04989272,139.92,139.9,0.04974073]
[1740839640684,0.04989272,139.92,139.91,7.1501]
[1740839642502,10.66,139.98,139.95,7.148]
[1740839642711,3.9753,140.0,139.87,181.16480667]
[1740839642898,10.66,139.99,139.87,3.7135]
[1740839643693,0.04527597,139.94,139.92,0.05217054]
[1740839643894,7.1481,139.95,139.92,7.20157054]
[1740839644094,0.04980697,139.94,139.92,7.20157054]
[1740839644489,0.04980697,139.94,139.92,0.05217054]
[1740839644709,7.19870697,139.94,139.92,0.05217054]
[1740839645298,0.04980697,139.94,139.92,7.20147054]
[1740839648109,0.04980697,139.94,139.92,0.05217054]
[1740839648408,7.1491,139.93,139.92,0.05217054]
[1740839649509,7.1503,139.91,139.87,7.1518]
[1740839649696,7.1503,139.91,139.84,9.93785985]
[1740839650605,7.1503,139.91,139.87,7.1517]
[1740839650793,0.0515695,139.89,139.87,7.1517]
[1740839650994,0.0515695,139.89,139.86,0.04706324]
[1740839651203,0.0515695,139.89,139.88,7.1517]
[1740839656014,10.66,139.94,139.86,0.04706324]
[1740839656316,10.66,139.97,139.92,7.1493]
[1740839656615,3.9473,139.98,139.88,10.66]
[1740839656813,3.9473,139.98,139.89,3.7825]
[1740839657302,0.04881963,139.95,139.94,7.1483]
[1740839661238,1.963e-05,139.95,139.94,7.1483]
[1740839663848,1.963e-05,139.95,139.93,7.1489]
[1740839664340,1.963e-05,139.95,139.94,7.1486]
[1740839664536,1.963e-05,139.95,139.94,188.17990667]
[1740839664937,1.963e-05,139.95,139.94,198.99990667]
[1740839666639,1.963e-05,139.95,139.94,195.41990667]
[1740839666834,1.963e-05,139.95,139.94,198.99990667]
[1740839668037,1.8747,140.07,139.94,198.99990667]
[1740839668242,7.1432,140.05,139.95,1.8508]
[1740839668445,10.82,140.11,139.96,3.8943]
[1740839668648,1.28840278,140.1,140.02,7.1445]
[1740839668848,7.1421,140.07,140.02,7.1445]
[1740839669245,0.04713829,140.06,140.04,7.1431]
[1740839669543,0.04790367,140.06,140.04,7.19023247]
[1740839669946,0.04790367,140.06,140.04,0.04713247]
[1740839670143,0.04790367,140.06,140.05,7.143]
[1740839672350,0.04790367,140.06,140.04,0.04713247]
[1740839672547,7.143,140.05,140.04,0.04713247]
[1740839672745,0.04790367,140.06,139.98,10.8]
[1740839672746,10.84790367,140.06,139.98,10.8]
[1740839672945,10.8,140.06,139.99,7.1457]
[1740839673246,10.8,140.06,139.96,3.8943]
[1740839673451,10.8,140.06,139.97,7.1468]
[1740839673651,7.1448,140.02,139.96,3.8943]
[1740839674149,0.05131036,140.0,139.98,7.19374541]
[1740839674358,1.9806,140.05,139.98,0.04744541]
[1740839674656,0.05401895,140.0,139.99,7.1457]
[1740839674851,0.04898795,140.01,139.99,7.1457]
[1740839675150,0.04898795,140.01,139.98,0.04744541]
[1740839675350,0.04898795,140.01,140.0,7.1455]
[1740839676144,0.04898795,140.01,139.99,7.1458]
[1740839676452,0.04898795,140.01,139.98,0.04744541]
[1740839676652,0.04898795,140.01,140.0,7.1455]
[1740839677849,0.04898795,140.01,139.98,0.04744541]
[1740839678046,7.19398795,140.01,139.98,7.19374541]
[1740839678246,7.19398795,140.01,139.98,0.04744541]
[1740839678553,7.19398795,140.01,139.99,7.146]
[1740839678753,7.1456,140.0,139.98,0.04744541]
[1740839679054,0.04898795,140.01,139.98,0.04744541]
[1740839679452,0.04898795,140.01,139.99,7.1456]
[1740839680055,0.04898795,140.01,139.98,0.04744541]
[1740839680254,0.04898795,140.01,140.0,7.1455]
[1740839680650,10.78,140.09,139.98,0.04744541]
[1740839680857,3.9226,140.11,139.98,177.45130667]
[1740839681656,7.1406,140.1,139.98,177.45130667]
[1740839681856,7.1406,140.1,140.07,7.1419]
[1740839682262,7.1413,140.09,140.07,0.04895793]
[1740839682854,7.1414,140.08,140.07,0.04895793]
[1740839683357,0.05229268,140.1,140.07,0.04895793]
[1740839683663,7.1412,140.09,140.07,0.04895793]
[1740839684460,7.19279268,140.1,140.08,7.1414]
[1740839684660,0.05229268,140.1,140.08,7.1414]
[1740839686263,0.05229268,140.1,140.09,7.1409]
[1740839686466,9.268e-05,140.1,140.09,7.1409]
[1740839687664,9.268e-05,140.1,140.09,10.7009]
[1740839688164,9.268e-05,140.1,140.09,7.1409]
[1740839693168,9.268e-05,140.1,140.09,184.59220667]
[1740839693674,9.268e-05,140.1,140.09,188.15220667]
[1740839697074,9.268e-05,140.1,140.09,184.59220667]
[1740839697471,9.268e-05,140.1,140.09,195.29220667]
[1740839697971,9.268e-05,140.1,140.09,184.59220667]
[1740839707775,9.268e-05,140.1,140.07,0.04895793]
[1740839709072,9.268e-05,140.1,140.08,7.1413]
[1740839709678,7.14089268,140.1,140.07,7.19065793]
[1740839709865,9.268e-05,140.1,140.07,0.04895793]
[1740839710270,7.1412,140.09,140.07,0.04895793]
[1740839710485,9.268e-05,140.1,140.07,0.04895793]
[1740839710675,9.268e-05,140.1,140.08,7.1412]
[1740839711975,9.268e-05,140.1,140.09,7.1409]
[1740839719694,9.268e-05,140.1,140.09,179.11020667]
[1740839720697,9.268e-05,140.1,140.09,175.55020667]
[1740839727598,9.268e-05,140.1,140.07,0.04895793]
[1740839728503,7.141,140.09,140.07,0.04895793]
[1740839729303,9.268e-05,140.1,140.07,7.19085793]
[1740839730399,9.268e-05,140.1,140.08,7.141]
[1740839730700,9.268e-05,140.1,140.07,0.04895793]
[1740839731005,9.268e-05,140.1,140.08,7.1414]
[1740839732905,9.268e-05,140.1,140.07,0.04895793]
[1740839733206,9.268e-05,140.1,140.09,7.1409]
[1740839733795,9.268e-05,140.1,140.07,0.04895793]
[1740839734692,7.1413,140.09,140.07,0.04895793]
[1740839735495,7.1415,140.08,140.05,7.1428]
[1740839736698,7.19349549,140.08,140.05,7.19237124]
[1740839737702,10.66,140.07,140.01,168.40930667]
[1740839737909,10.66,140.07,139.98,39.49243203]
[1740839738302,10.66,140.07,139.99,7.1457]
[1740839738910,10.66,140.07,140.02,0.04592643]
[1740839738911,7.144,140.03,140.02,0.04592643]
[1740839740997,7.18993547,140.04,140.02,0.04592643]
[1740839741408,0.04633547,140.04,140.02,0.04592643]
[1740839741709,7.144,140.03,140.02,0.04592643]
[1740839742099,7.19013547,140.04,140.02,0.04592643]
[1740839742295,0.04633547,140.04,140.02,0.04592643]
[1740839742504,0.04633547,140.04,140.03,7.144]
[1740839745413,228.54,140.09,140.08,7.1414]
[1740839745605,228.54,140.09,140.03,2.0043]
[1740839746000,3.7895,140.15,140.04,10.66]
[1740839746197,7.1387,140.14,140.04,179.06930667]
[1740839746604,0.04679549,140.1,140.08,0.05315854]
[1740839747203,0.04679549,140.1,140.09,7.1409]
[1740839749117,0.04679549,140.1,140.08,7.19435854]
[1740839750709,0.04679549,140.1,140.08,0.05315854]
[1740839751315,0.04679549,140.1,140.09,7.1409]
[1740839753616,7.1379,140.15,140.12,7.1393]
[1740839753917,228.58,140.16,140.04,181.03370667]
[1740839754119,228.58,140.16,140.04,12.6244]
[1740839754519,7.1387,140.14,140.11,7.1395]
[1740839754921,7.1838737,140.14,140.09,0.0484966]
[1740839755316,0.0451737,140.14,140.09,0.0484966]
[1740839755716,7.1838737,140.14,140.11,7.1396]
[1740839755921,7.1838737,140.14,140.09,0.0484966]
[1740839756326,7.1838737,140.14,140.11,7.1396]
[1740839758626,0.0451737,140.14,140.12,7.1394]
[1740839760324,0.0451737,140.14,140.13,7.1389]
[1740839774363,7.1389,140.13,140.12,0.05190289]
[1740839778458,3.56,140.13,140.04,1.9644]
[1740839778658,3.6843,140.12,140.0,180.99810667]
[1740839778962,228.48,140.11,140.0,172.30900667]
[1740839779162,228.48,140.11,140.0,3.8997]
[1740839779466,1.2885223,140.1,139.99,1.861]
[1740839779661,7.143,140.05,140.04,0.04904319]
[1740839780462,7.1426,140.06,140.04,0.04904319]
[1740839781070,0.04767726,140.07,140.04,0.04904319]
[1740839781361,1.33613446,140.07,140.04,0.04904319]
[1740839781560,0.04767726,140.07,140.04,0.04904319]
[1740839781860,7.1425,140.06,140.04,0.04904319]
[1740839782065,0.04767726,140.07,140.04,0.04904319]
[1740839782248,7.18977726,140.07,140.04,0.04904319]
[1740839782663,0.04767726,140.07,140.04,0.04904319]
[1740839785164,7.18987726,140.07,140.04,0.04904319]
[1740839786751,7.1425,140.06,140.04,0.04904319]
[1740839786969,0.04767726,140.07,140.04,0.04904319]
[1740839787260,7.1425,140.06,140.04,0.04904319]
[1740839787666,0.04767726,140.07,140.04,0.04904319]
[1740839787866,0.04767726,140.07,139.99,1.861]
[1740839788057,0.04767726,140.07,140.0,7.1454]
[1740839788252,0.04767726,140.07,139.99,1.861]
[1740839788461,7.1432,140.05,139.99,1.861]
[1740839788764,10.66,140.06,139.99,1.861]
[1740839788960,0.04696954,140.03,140.01,0.0498043]
[1740839789160,0.04696954,140.03,140.02,7.1442]
[1740839790762,0.04696954,140.03,140.01,7.1947043]
[1740839791269,0.04696954,140.03,140.01,0.0498043]
[1740839791859,0.04696954,140.03,140.01,7.1945043]
[1740839792169,0.04696954,140.03,140.01,0.0498043]
[1740839792677,0.04696954,140.03,140.02,7.1445]
[1740839793062,10.66,140.1,140.02,1.8432]
[1740839793460,228.48,140.11,140.02,1.8432]
[1740839794369,0.05242393,140.08,140.07,7.1415]
[1740839795177,0.05242393,140.08,140.05,0.04836046]
[1740839795973,7.19422393,140.08,140.05,7.19086046]
[1740839796270,7.142,140.07,140.05,7.19086046]
[1740839796471,0.05242393,140.08,140.06,7.1423]
[1740839796675,0.05242393,140.08,140.05,0.04836046]
[1740839797263,0.05242393,140.08,140.07,7.142]
[1740839802071,7.142,140.07,140.05,0.04836046]
[1740839802371,0.05242393,140.08,140.05,0.04836046]
[1740839802779,7.19422393,140.08,140.05,7.19116046]
[1740839804870,0.05242393,140.08,140.05,0.04836046]
[1740839805067,10.64,140.07,140.05,0.04836046]
[1740839805579,7.1425,140.06,140.05,0.04836046]
[1740839807773,7.1425,140.06,140.05,6.046e-05]
[1740839807974,10.7225,140.06,140.05,6.046e-05]
[1740839808168,12.5581,140.06,140.05,6.046e-05]
[1740839810083,8.9781,140.06,140.05,6.046e-05]
[1740839810485,7.1425,140.06,140.05,6.046e-05]
[1740839814977,10.7225,140.06,140.05,6.046e-05]
[1740839815177,16.4005,140.06,140.05,6.046e-05]
[1740839815985,17.68912188,140.06,140.05,6.046e-05]
[1740839817290,14.10912188,140.06,140.05,6.046e-05]
[1740839817590,14.10911554,140.06,140.05,6.046e-05]
[1740839817783,7.1425,140.06,140.05,6.046e-05]
[1740839820285,17.8025,140.06,140.05,6.046e-05]
[1740839821886,7.1425,140.06,140.05,6.046e-05]
[1740839822091,10.66,140.07,140.05,6.046e-05]
[1740839822290,0.05242393,140.08,140.05,6.046e-05]
[1740839822791,7.1425,140.06,140.05,6.046e-05]
[1740839823181,0.05242393,140.08,140.05,6.046e-05]
[1740839823487,7.1423,140.07,140.05,6.046e-05]
[1740839823887,7.1423,140.07,140.05,7.14296046]
[1740839824091,7.1423,140.07,140.05,6.046e-05]
[1740839824391,7.1425,140.06,140.05,6.046e-05]
[1740839829295,12.01113697,140.06,140.05,6.046e-05]
[1740839830094,8.43113697,140.06,140.05,6.046e-05]
[1740839831189,7.1425,140.06,140.05,6.046e-05]
[1740839832087,0.05242393,140.08,140.05,6.046e-05]
[1740839832684,0.05242393,140.08,140.07,7.142]
[1740839833091,228.48,140.11,140.06,3.8759]
[1740839833297,228.48,140.11,140.08,7.141]
[1740839833601,228.48,140.11,140.06,5.8539]
[1740839833798,228.48,140.11,140.08,7.1412]
[1740839833990,228.48,140.11,140.03,10.64]
[1740839834298,0.04804149,140.08,140.06,7.19549917]
[1740839834597,0.04804149,140.08,140.06,0.05329917]
[1740839834792,0.04804149,140.08,140.06,7.19569917]
[1740839835194,0.04804149,140.08,140.06,0.05329917]
[1740839835902,0.04804149,140.08,140.06,7.19569917]
[1740839836400,0.04804149,140.08,140.06,0.05329917]
[1740839836594,0.04804149,140.08,140.06,7.19559917]
[1740839836901,0.04804149,140.08,140.06,0.05329917]
[1740839840005,235.6202,140.11,140.06,0.05329917]
[1740839840489,228.48,140.11,140.06,0.05329917]
[1740839840694,7.1391,140.13,140.06,0.05329917]
[1740839841097,0.05448324,140.11,140.06,0.05329917]
[1740839841500,0.05448324,140.11,140.1,7.1404]
[1740839841905,10.64,140.16,140.09,0.04862932]
[1740839842102,10.64,140.16,140.11,7.1399]
[1740839842402,7.1384,140.14,140.11,7.1399]
[1740839842799,7.1384,140.14,140.1,7.1402]
[1740839843108,0.04529067,140.13,140.11,0.05213763]
[1740839844509,7.18439067,140.13,140.11,0.05213763]
[1740839845310,7.1394,140.12,140.11,0.05213763]
[1740839845697,0.04529067,140.13,140.0,9.93785985]
[1740839845897,0.04529067,140.13,140.02,7.1445]
[1740839846101,1.28825807,140.15,140.02,7.1445]
[1740839846501,7.1432,140.05,140.02,7.1445]
[1740839846808,0.05444112,140.05,140.02,0.05491425]
[1740839847211,7.1411,140.09,140.02,1.91691425]
[1740839847510,7.1414,140.08,140.02,1.91691425]
[1740839847712,7.1414,140.08,140.02,1.862]
[1740839848103,7.1422,140.07,140.02,1.862]
[1740839848299,0.05279002,140.06,140.04,0.04876718]
[1740839848502,10.64,140.11,140.04,0.04876718]
[1740839848805,10.64,140.11,140.06,7.1424]
[1740839849222,10.64,140.11,140.02,1.862]
[1740839849606,0.04698139,140.08,140.05,0.0509427]
[1740839850007,0.04698139,140.08,140.05,7.1935427]
[1740839850506,0.04698139,140.08,140.05,0.0509427]
[1740839851527,7.1425,140.06,140.05,0.0509427]
[1740839853720,7.1455,140.01,139.96,169.34949383]
[1740839853926,7.1455,140.01,139.96,0.94018716]
[1740839854123,7.1455,140.01,139.97,7.1469]
[1740839854933,0.04598609,140.0,139.98,0.04944131]
[1740839855716,0.04598609,140.0,139.98,7.19594131]
[1740839856423,0.04598609,140.0,139.98,0.04944131]
[1740839856734,0.04598609,140.0,139.99,7.146]
[1740839858929,17.7828,140.06,139.98,0.04944131]
[1740839859227,17.7828,140.06,140.02,7.1443]
[1740839860130,0.05155597,140.05,140.03,0.04872113]
[1740839861032,0.05155597,140.05,140.03,7.19272113]
[1740839861641,0.05155597,140.05,140.04,7.1435]
[1740839862336,7.141,140.09,140.06,7.142]
[1740839863434,228.56,140.1,140.07,7.1415]
[1740839863435,235.7006,140.1,140.07,7.1415]
[1740839863636,235.7006,140.1,140.06,0.04591475]
[1740839864031,235.7006,140.1,140.07,7.1417]
[1740839865331,228.56,140.1,140.08,7.1414]
[1740839865531,228.56,140.1,140.06,0.04591475]
[1740839865933,10.64,140.15,140.09,7.1409]
[1740839866133,1.2879256,140.14,140.09,7.1409]
[1740839866442,10.64,140.15,140.11,0.04642503]
[1740839866733,7.1389,140.13,140.05,1.9642]
[1740839867037,10.64,140.15,140.08,0.04828631]
[1740839867235,7.1394,140.12,140.08,7.18918631]
[1740839867431,7.1394,140.12,140.08,0.04828631]
[1740839868039,7.1392,140.13,140.08,0.04828631]
[1740839868426,10.64,140.15,140.08,0.04828631]
[1740839868631,7.1397,140.12,140.09,7.1407]
[1740839870834,7.1397,140.12,140.08,0.04828631]
[1740839871838,7.1397,140.12,140.09,7.1406]
[1740839872227,7.1399,140.11,140.08,0.04828631]
[1740839872427,10.64,140.15,140.08,0.04828631]
[1740839872737,7.1397,140.12,140.08,0.04828631]
[1740839872936,7.1397,140.12,140.09,7.1408]
[1740839874942,10.64,140.15,140.09,7.1408]
[1740839875131,7.1399,140.11,140.08,0.04828631]
[1740839875326,7.1399,140.11,140.08,7.18928631]
[1740839878347,10.64,140.15,140.08,0.04828631]
[1740839878652,7.1409,140.09,140.08,0.04828631]
[1740839881434,7.1432,140.05,140.03,168.40930667]
[1740839881640,7.1432,140.05,140.02,1.9204]
[1740839881838,10.64,140.1,140.0,1.923]
[1740839882241,7.1427,140.06,140.0,1.923]
[1740839882743,0.04866834,140.05,140.02,0.0488392]
[1740839883047,0.04866834,140.05,140.03,7.144]
[1740839884539,0.04866834,140.05,140.04,7.1435]
[1740839888350,0.04866834,140.05,140.03,7.1438]
[1740839889050,0.04866834,140.05,140.02,0.0488392]
[1740839890339,7.1437,140.04,140.02,0.0488392]
[1740839893760,0.04866834,140.05,140.03,7.1436]
[1740839895446,7.19166834,140.05,140.03,7.1436]
[1740839896251,0.04866834,140.05,140.03,7.1436]
[1740839896643,0.04866834,140.05,140.02,7.1928392]
[1740839896851,7.19166834,140.05,140.02,7.1928392]
[1740839897352,0.04866834,140.05,140.02,0.0488392]
[1740839898151,7.19186834,140.05,140.02,7.1929392]
[1740839898346,0.04866834,140.05,140.02,0.0488392]
[1740839899251,0.04866834,140.05,140.04,7.1435]
[1740839902148,228.58,140.1,140.02,10.6888392]
[1740839903154,228.58,140.1,140.09,7.1409]
[1740839903353,7.1397,140.12,140.09,7.1409]
[1740839905360,7.1399,140.11,140.09,7.1409]
[1740839906860,7.1404,140.1,140.08,0.0502965]
[1740839907259,10.64,140.15,140.08,0.0502965]
[1740839907457,1.28796294,140.14,140.08,0.0502965]
[1740839907955,7.1409,140.09,140.08,0.0502965]
[1740839909446,10.64,140.15,140.08,0.0502965]
[1740839909650,1.28793056,140.14,140.08,0.0502965]
[1740839909962,7.1402,140.11,140.08,0.0502965]
[1740839910151,10.64,140.15,140.08,0.0502965]
[1740839910351,1.28802145,140.14,140.08,0.0502965]
[1740839910850,3.8877,140.13,140.08,0.0502965]
[1740839911054,7.1408,140.1,140.08,0.0502965]
[1740839911860,7.1409,140.09,140.08,0.0502965]
[1740839913255,17.7807,140.1,140.08,7.1916965]
[1740839913456,7.1407,140.1,140.08,7.1916965]
[1740839913857,7.1401,140.11,140.08,7.1916965]
[1740839914361,7.1401,140.11,140.08,0.0502965]
[1740839915265,7.1405,140.1,140.08,0.0502965]
[1740839916866,1.9716,140.12,140.08,0.0502965]
[1740839917069,7.1409,140.09,140.08,0.0502965]
[1740839922163,1.9716,140.12,140.08,0.0502965]
[1740839922369,7.1402,140.11,140.08,0.0502965]
[1740839922670,12.6116,140.12,140.08,0.0502965]
[1740839923661,7.1409,140.09,140.08,0.0502965]
[1740839925458,7.1426,140.06,140.03,7.1437]
[1740839925659,10.64,140.07,140.0,1.923]
[1740839926669,0.0485759,140.05,140.02,0.04584448]
[1740839927071,7.1438,140.04,140.02,0.04584448]
[1740839927664,7.144,140.03,140.02,0.04584448]
[1740839928471,7.1457,140.0,139.98,9.93785985]
[1740839928869,7.1457,140.0,139.97,7.1469]
[1740839929370,7.1457,140.0,139.95,3.803]
[1740839929670,7.19934272,140.0,139.97,0.04712081]
[1740839933772,7.1461,139.99,139.97,0.04712081]
[1740839934272,0.05364272,140.0,139.97,0.04712081]
[1740839934477,10.64,140.08,139.97,0.04712081]
[1740839934779,10.64,140.07,139.97,10.64]
[1740839935074,7.143,140.05,139.98,1.8693]
[1740839935761,0.04249826,140.03,140.01,7.1447]
[1740839935968,0.04249826,140.03,140.0,0.04780688]
[1740839936168,0.04249826,140.03,140.01,7.145]
[1740839936474,0.04249826,140.03,140.0,0.04780688]
[1740839937267,0.04249826,140.03,140.01,7.145]
[1740839938378,0.04249826,140.03,140.0,0.04780688]
[1740839938567,0.04249826,140.03,140.02,7.1445]
[1740839940178,7.1422,140.07,140.04,7.1432]
[1740839940577,10.64,140.1,140.01,3.7647]
[1740839940874,10.64,140.11,140.01,3.7647]
[1740839941381,10.64,140.11,140.05,0.05330719]
[1740839942268,7.1407,140.1,140.06,7.1422]
[1740839942467,10.64,140.11,140.05,0.05330719]
[1740839943484,7.1425,140.06,140.05,0.05330719]
[1740839944277,10.64,140.11,140.05,0.05330719]
[1740839945178,7.1425,140.06,140.05,0.05330719]
[1740839947783,7.1418,140.08,140.05,0.05330719]
[1740839948081,10.64,140.11,140.05,7.19600719]
[1740839948389,10.64,140.11,140.05,0.05330719]
[1740839948781,10.64,140.11,140.06,7.1421]
[1740839949083,7.1413,140.09,140.06,7.1421]
[1740839949387,7.1412,140.09,140.06,7.1421]
[1740839949574,7.1412,140.09,140.07,7.1419]
[1740839950985,239.22,140.13,140.08,7.1413]
[1740839951185,228.58,140.13,140.08,7.1413]
[1740839951388,228.58,140.13,140.09,0.05113258]
[1740839951579,228.58,140.13,140.11,7.1397]
[1740839951987,10.64,140.18,140.1,3.8192]
[1740839952180,1.28781828,140.17,140.1,3.8192]
[1740839952376,1.28781828,140.17,140.13,0.05012982]
[1740839952681,228.6,140.2,140.13,0.05012982]
[1740839952887,118.90501036,140.21,140.16,7.1371]
[1740839953186,118.90501036,140.21,140.14,10.64]
[1740839953392,118.90501036,140.21,140.19,7.1358]
[1740839953687,7.1336,140.24,140.19,7.1358]
[1740839953875,118.90501036,140.25,140.16,7.1372]
[1740839954079,118.90501036,140.25,140.17,1.9171]
[1740839954278,118.90501036,140.25,140.2,0.04587716]
[1740839955389,7.1348,140.21,140.2,0.04587716]
[1740839955791,118.90501036,140.25,140.2,0.04587716]
[1740839956492,7.1346,140.22,140.2,0.04587716]
[1740839956690,118.90501036,140.25,140.2,0.04587716]
[1740839957086,7.1348,140.22,140.2,0.04587716]
[1740839958493,10.62,140.26,140.2,0.04587716]
[1740839958789,7.1348,140.21,140.2,0.04587716]
[1740839965494,7.1345,140.22,140.2,0.04587716]
[1740839965793,7.1345,140.22,140.2,7.18117716]
[1740839965988,7.1341,140.23,140.2,7.18117716]
[1740839967696,10.62,140.27,140.2,0.04587716]
[1740839968189,1.28682969,140.26,140.2,0.04587716]
[1740839968390,7.1346,140.22,140.2,0.04587716]
[1740839969295,7.1341,140.23,140.2,7.18117716]
[1740839972195,7.1335,140.24,140.21,7.1347]
[1740839976900,7.1338,140.23,140.2,0.04587716]
[1740839977098,10.62,140.27,140.2,0.04587716]
[1740839977802,7.1336,140.24,140.2,0.04587716]
[1740839978290,7.1336,140.24,140.22,7.1342]
[1740839979007,7.1339,140.23,140.21,7.1346]
[1740839979304,10.62,140.27,140.2,0.04587716]
[1740839979695,7.1348,140.21,140.2,0.04587716]
[1740839985705,10.62,140.27,140.2,0.04587716]
[1740839985911,10.62,140.27,140.2,7.18077716]
[1740839986412,7.1328,140.25,140.22,7.1339]
[1740839986600,10.62,140.27,140.22,7.1339]
[1740839986802,7.1326,140.26,140.22,0.05081787]
[1740839987006,7.1326,140.26,140.23,7.1337]
[1740839987898,10.62,140.27,140.23,7.1337]
[1740839988104,7.133,140.25,140.23,7.1337]
[1740839988814,7.133,140.25,140.22,0.05081787]
[1740839989017,7.133,140.25,140.22,7.18471787]
[1740839989513,7.133,140.25,140.22,0.05081787]
[1740839989713,7.1336,140.24,140.22,0.05081787]
[1740839989924,10.62,140.27,140.22,0.05081787]
[1740839990423,7.1334,140.24,140.22,7.18471787]
[1740839990730,10.62,140.27,140.22,7.18471787]
[1740839990929,7.1335,140.24,140.22,7.18471787]
[1740839991231,10.62,140.27,140.22,7.18471787]
[1740839991628,7.1332,140.25,140.22,7.18471787]
[1740839992028,10.62,140.27,140.22,7.18471787]
[1740839992225,7.1332,140.25,140.22,7.18471787]
[1740839992429,10.62,140.27,140.22,7.18471787]
[1740839992934,7.1333,140.24,140.22,7.18471787]
[1740839996826,7.1333,140.24,140.22,0.05081787]
[1740839997338,7.1333,140.24,140.22,7.18501787]
[1740839998229,7.1333,140.24,140.22,0.05081787]
[1740839998428,7.1338,140.23,140.22,0.05081787]
[1740840002133,0.05081787,140.24,140.14,170.40210667]
[1740840002335,3.8713,140.26,140.15,1.8461]
[1740840002927,1.28682051,140.25,140.15,1.8461]
[1740840003130,1.28696996,140.24,140.19,0.05282961]
[1740840003435,0.05081787,140.23,140.19,0.05282961]
[1740840003634,10.62,140.22,140.19,0.05282961]
[1740840004837,7.1351,140.21,140.19,0.05282961]
[1740840005746,10.62,140.22,140.19,0.05282961]
[1740840006038,7.1353,140.2,140.19,0.05282961]
[1740840008638,7.1376,140.16,140.1,207.38236936]
[1740840008844,10.62,140.22,140.1,40.92986269]
[1740840009033,1.28729606,140.21,140.1,40.92986269]
[1740840009345,7.1387,140.14,140.11,104.28953114]
[1740840009638,7.1387,140.14,140.1,40.92986269]
[1740840009842,7.18951781,140.14,140.11,0.04724759]
[1740840010345,0.05081781,140.14,140.11,0.04724759]
[1740840010939,0.05081781,140.14,140.13,7.1389]
[1740840011143,10.62,140.17,140.11,0.04724759]
[1740840011336,10.62,140.2,140.11,0.04724759]
[1740840011538,17.7555,140.2,140.15,7.1374]
[1740840011847,10.62,140.21,140.1,1.9568]
[1740840012032,10.62,140.21,140.11,10.62]
[1740840012230,0.05282967,140.17,140.15,0.04719695]
[1740840013445,10.62,140.23,140.15,0.04719695]
[1740840013646,10.62,140.23,140.11,10.62]
[1740840013835,7.1359,140.19,140.15,7.1376]
[1740840014448,7.1364,140.18,140.14,7.138]
[1740840014641,10.62,140.23,140.16,0.04735685]
[1740840014946,7.1369,140.17,140.16,0.04735685]
[1740840017445,239.08735685,140.18,140.07,1.983]
[1740840017639,5.06855074,140.17,140.07,1.983]
[1740840017842,1.28765074,140.16,140.07,1.983]
[1740840018040,7.1399,140.11,140.07,9.1247]
[1740840018342,7.1399,140.11,140.07,1.983]
[1740840018547,0.04735685,140.1,140.09,7.1409]
[1740840020136,10.62,140.15,140.08,0.04824369]
[1740840020343,10.62,140.15,140.13,7.1385]
[1740840020545,10.62,140.15,140.08,1.9239]
[1740840021444,10.62,140.15,140.1,0.04918384]
[1740840022545,10.62,140.15,140.14,7.1384]
[1740840022743,7.1372,140.17,140.08,1.9239]
[1740840022942,7.1372,140.17,140.13,0.04701446]
[1740840023143,7.1372,140.17,140.14,7.1383]
[1740840023343,246.1766,140.18,140.13,0.04701446]
[1740840023653,246.1766,140.18,140.14,7.1381]
[1740840024155,7.1369,140.17,140.14,7.1381]
[1740840024344,239.04,140.18,140.13,0.04701446]
[1740840024651,7.1382,140.15,140.13,0.04701446]
[1740840026752,7.1384,140.14,140.13,0.04701446]
[1740840026946,239.04,140.18,140.07,1.983]
[1740840027146,15.76449952,140.17,140.07,1.983]